[Event "S. A. Group BAN-chT 2018"]
[Site "Dhaka"]
[Date "2018.12.07"]
[Round "1"]
[White "Sahoo, Utkal Ranjan"]
[Black "Mohammad Minhaz Uddin"]
[Result "1-0"]
[ECO "E32"]
[WhiteElo "2286"]
[BlackElo "2290"]
[Annotator "NA"]
[PlyCount "101"]
[EventDate "2018.12.07"]
[EventType "team-tourn"]
[EventCountry "BAN"]
[SourceTitle "playchess.com"]
[Source "ChessBase"]
[SourceQuality "1"]
[TimeControl "5400+30"]

1. d4 {[%emt 0:00:00]} Nf6 {[%emt 0:00:00]} 2. c4 {[%emt 0:00:02]} e6 {[%emt 0:00:00]} 3. Nf3 {[%emt 0:00:12]} b6 {[%emt 0:00:00]} 4. Nc3 {[%emt 0:01:30]} Bb4 {[%emt 0:00:11]} 5. Qc2 {[%emt 0:00:34]} Bb7 {[%emt 0:00:39]} 6. a3 {[%emt 0:01:06]} Bxc3+ {[%emt 0:00:09]} 7. Qxc3 {[%emt 0:00:04]} O-O {[%emt 0:00:17]} 8. Bg5 {[%emt 0:01:04]} d6 {[%emt 0:00:22]} 9. Nd2 {[%emt 0:01:07]} Nbd7 {[%emt 0:07:09]} 10. f3 {[%emt 0:02:06]} h6 {[%emt 0:00:13]} 11. Bh4 {[%emt 0:04:22]} c5 {[%emt 0:02:40]} 12. e4 {[%emt 0:01:39]} Rc8 {[%emt 0:09:13]} 13. Bd3 {[%emt 0:08:43]} cxd4 {[%emt 0:04:26]} 14. Qxd4 {[%emt 0:00:13]} Qc7 {[%emt 0:12:56]} 15. O-O {[%emt 0:03:39]} e5 {[%emt 0:01:16]} 16. Qe3 {[%emt 0:03:07]} Nh5 {[%emt 0:00:51]} 17. Rfd1 {[%emt 0:01:39]} Nf4 {[%emt 0:01:12]} 18. Bf1 {[%emt 0:00:44]} Nb8 {[%emt 0:01:16]} 19. b4 {[%emt 0:03:41]} Nc6 {[%emt 0:02:57]} 20. Nb3 {[%emt 0:02:11]} Ne6 {[%emt 0:00:25]} 21. Qd3 {[%emt 0:02:49]} g5 {[%emt 0:08:56]} 22. Bf2 {[%emt 0:01:58]} Rcd8 {[%emt 0:03:21]} 23. Rac1 {[%emt 0:12:44]} Ne7 {[%emt 0:02:21]} 24. Qc3 {[%emt 0:07:15]} Bc6 {[%emt 0:01:32]} 25. Nd2 {[%emt 0:04:14]} Ba4 {[%emt 0:04:22]} 26. Re1 {[%emt 0:00:15]} Bc6 {[%emt 0:00:05]} 27. Qb3 {[%emt 0:04:20]} Bb7 {[%emt 0:03:44]} 28. Nb1 {[%emt 0:02:14]} Nc6 {[%emt 0:00:24]} 29. Nc3 {[%emt 0:00:33]} Ncd4 {[%emt 0:00:08]} 30. Qd1 {[%emt 0:01:26]} f5 {[%emt 0:02:16]} 31. Nd5 {[%emt 0:03:02]} Qg7 {[%emt 0:00:41]} 32. exf5 {[%emt 0:01:55]} Rxf5 {[%emt 0:02:13]} 33. Bd3 {[%emt 0:03:18]} Rf7 {[%emt 0:00:06]} 34. Be4 {[%emt 0:01:38]} Rdf8 {[%emt 0:01:54]} 35. Be3 {[%emt 0:01:11]} Kh8 {[%emt 0:03:45]} 36. Qd3 {[%emt 0:04:01]} g4 {[%emt 0:06:20]} 37. fxg4 {[%emt 0:05:01]} Qxg4 {[%emt 0:01:20]} 38. Bxh6 {[%emt 0:02:15]} Nf3+ {[%emt 0:06:23]} 39. Bxf3 {[%emt 0:01:12]} Rxf3 {[%emt 0:00:02]} 40. Re3 {[%emt 0:04:03]} Rg8 {[%emt 0:03:29]} 41. Rc2 {[%emt 0:03:21]} Nd4 {[%emt 0:00:56]} 42. Rb2 {[%emt 0:00:35]} Qh5 {[%emt 0:03:49]} 43. Kh1 {[%emt 0:02:08]} Qxh6 {[%emt 0:06:21]} 44. gxf3 {[%emt 0:00:19]} Qg5 {[%emt 0:00:29]} 45. Qf1 {[%emt 0:01:31]} Qh6 {[%emt 0:00:33]} 46. f4 {[%emt 0:00:45]} Rg4 {[%emt 0:00:41]} 47. Rh3 {[%emt 0:00:54]} Rh4 {[%emt 0:00:02]} 48. Rxh4 {[%emt 0:00:30]} Qxh4 {[%emt 0:00:02]} 49. Rg2 {[%emt 0:00:27]} Bc8 {[%emt 0:01:20]} 50. fxe5 {[%emt 0:00:27]} Bf5 {[%emt 0:00:24]} 51. Nf6 {[%emt 0:00:34]} 1-0

[Event "S. A. Group BAN-chT 2018"]
[Site "Dhaka"]
[Date "2018.12.07"]
[Round "1"]
[White "Abu Sufian, Shakil"]
[Black "Rahman, Matiur"]
[Result "1-0"]
[ECO "B86"]
[WhiteElo "2230"]
[BlackElo "1984"]
[Annotator "NA"]
[PlyCount "99"]
[EventDate "2018.12.07"]
[EventType "team-tourn"]
[EventCountry "BAN"]
[SourceTitle "playchess.com"]
[Source "ChessBase"]
[SourceQuality "1"]
[TimeControl "5400+30"]

1. e4 {[%emt 0:00:00]} c5 {[%emt 0:00:00]} 2. Nf3 {[%emt 0:00:00]} d6 {[%emt 0:00:18]} 3. d4 {[%emt 0:00:00]} cxd4 {[%emt 0:02:42]} 4. Nxd4 {[%emt 0:00:13]} Nf6 {[%emt 0:00:10]} 5. Nc3 {[%emt 0:00:02]} a6 {[%emt 0:00:37]} 6. Bc4 {[%emt 0:00:05]} e6 {[%emt 0:01:56]} 7. Bb3 {[%emt 0:00:25]} Be7 {[%emt 0:02:48]} 8. g4 {[%emt 0:01:42]} h6 {[%emt 0:02:28]} 9. Be3 {[%emt 0:04:53]} Nc6 {[%emt 0:06:07]} 10. Rg1 {[%emt 0:02:27]} Qc7 {[%emt 0:06:35]} 11. Qe2 {[%emt 0:02:47]} Nxd4 {[%emt 0:01:56]} 12. Bxd4 {[%emt 0:00:02]} e5 {[%emt 0:00:25]} 13. Be3 {[%emt 0:00:22]} Be6 {[%emt 0:02:15]} 14. O-O-O {[%emt 0:02:38]} b5 {[%emt 1:08:43]} 15. Nd5 {[%emt 0:04:39]} Bxd5 {[%emt 0:00:00]} 16. Bxd5 {[%emt 0:00:07]} Nxd5 {[%emt 0:00:00]} 17. Rxd5 {[%emt 0:00:08]} Bg5 {[%emt 0:00:00]} 18. Rgd1 {[%emt 0:01:45]} Rd8 {[%emt 0:00:00]} 19. Kb1 {[%emt 0:01:34]} Ke7 {[%emt 0:00:00]} 20. Qd2 {[%emt 0:12:52]} Bxe3 {[%emt 0:00:00]} 21. Qxe3 {[%emt 0:00:12]} f6 {[%emt 0:00:00]} 22. f4 {[%emt 0:01:31]} g5 {[%emt 0:00:00]} 23. fxe5 {[%emt 0:01:31]} fxe5 {[%emt 0:00:00]} 24. Qa3 {[%emt 0:00:36]} Ke6 {[%emt 0:00:00]} 25. Qxa6 {[%emt 0:01:41]} b4 {[%emt 0:00:00]} 26. Qb5 {[%emt 0:01:56]} Rb8 {[%emt 0:00:00]} 27. Rxd6+ {[%emt 0:03:12]} Qxd6 {[%emt 0:00:00]} 28. Rxd6+ {[%emt 0:00:12]} Kxd6 {[%emt 0:00:00]} 29. Qd5+ {[%emt 0:00:07]} Kc7 {[%emt 0:00:00]} 30. Qxe5+ {[%emt 0:00:24]} Kb6 {[%emt 0:00:00]} 31. Qd6+ {[%emt 0:03:11]} Ka5 {[%emt 0:00:00]} 32. a3 {[%emt 0:01:21]} bxa3 {[%emt 0:00:00]} 33. Qxa3+ {[%emt 0:00:13]} Kb5 {[%emt 0:00:00]} 34. Qd3+ {[%emt 0:02:17]} Kb6 {[%emt 0:00:00]} 35. Qd6+ {[%emt 0:00:16]} Kb5 {[%emt 0:00:00]} 36. b3 {[%emt 0:00:52]} Rbd8 {[%emt 0:00:00]} 37. c4+ {[%emt 0:02:51]} Ka5 {[%emt 0:00:00]} 38. Qc5+ {[%emt 0:00:13]} Ka6 {[%emt 0:00:00]} 39. Kc2 {[%emt 0:00:29]} Kb7 {[%emt 0:00:00]} 40. b4 {[%emt 0:01:30]} Rhf8 {[%emt 0:00:00]} 41. b5 {[%emt 0:00:22]} Rc8 {[%emt 0:00:00]} 42. Qd5+ {[%emt 0:01:21]} Kb6 {[%emt 0:00:00]} 43. Kb3 {[%emt 0:01:27]} Rfd8 {[%emt 0:00:00]} 44. Qe6+ {[%emt 0:00:55]} Kc5 {[%emt 0:00:00]} 45. Qe5+ {[%emt 0:00:45]} Kb6 {[%emt 0:00:00]} 46. Kb4 {[%emt 0:00:40]} Rd1 {[%emt 0:00:00]} 47. c5+ {[%emt 0:00:54]} Kb7 {[%emt 0:00:00]} 48. Qe7+ {[%emt 0:01:47]} Rc7 {[%emt 0:00:00]} 49. c6+ {[%emt 0:00:19]} Kb8 {[%emt 0:00:00]} 50. Qe5 {[%emt 0:00:47]} 1-0

[Event "S. A. Group BAN-chT 2018"]
[Site "Dhaka"]
[Date "2018.12.07"]
[Round "1"]
[White "Ahmed, Sk. Nasir"]
[Black "Jamal Uddin"]
[Result "1-0"]
[ECO "B06"]
[WhiteElo "2119"]
[BlackElo "2001"]
[Annotator "NA"]
[PlyCount "84"]
[EventDate "2018.12.07"]
[EventType "team-tourn"]
[EventCountry "BAN"]
[SourceTitle "playchess.com"]
[Source "ChessBase"]
[SourceQuality "1"]
[TimeControl "5400+30"]

1. e4 {[%emt 0:00:00]} g6 {[%emt 0:00:06]} 2. d4 {[%emt 0:00:00]} Bg7 {[%emt 0:00:03]} 3. Nc3 {[%emt 0:00:00]} d6 {[%emt 0:00:16]} 4. Bg5 {[%emt 0:00:20]} Nd7 {[%emt 0:01:08]} 5. Qd2 {[%emt 0:01:19]} c5 {[%emt 0:01:29]} 6. d5 {[%emt 0:01:53]} a6 {[%emt 0:01:30]} 7. a4 {[%emt 0:02:08]} Qa5 {[%emt 0:01:13]} 8. f4 {[%emt 0:01:24]} Ngf6 {[%emt 0:01:47]} 9. Ra3 {[%emt 0:18:15]} Qb4 {[%emt 0:08:23]} 10. Rb3 {[%emt 0:02:20]} Qd4 {[%emt 0:00:53]} 11. Nf3 {[%emt 0:34:41]} Qxd2+ {[%emt 0:04:50]} 12. Nxd2 {[%emt 0:00:19]} h6 {[%emt 0:00:36]} 13. Bh4 {[%emt 0:04:45]} Nh5 {[%emt 0:01:39]} 14. Ne2 {[%emt 0:01:17]} Rb8 {[%emt 0:10:59]} 15. a5 {[%emt 0:02:41]} b5 {[%emt 0:03:05]} 16. Bf2 {[%emt 0:05:19]} O-O {[%emt 0:06:13]} 17. g3 {[%emt 0:03:18]} Nhf6 {[%emt 0:06:32]} 18. Bg2 {[%emt 0:01:02]} Bb7 {[%emt 0:05:47]} 19. h3 {[%emt 0:01:08]} c4 {[%emt 0:01:47]} 20. Re3 {[%emt 0:05:10]} Nc5 {[%emt 0:01:00]} 21. O-O {[%emt 0:00:24]} Rfc8 {[%emt 0:03:04]} 22. b3 {[%emt 0:04:40]} cxb3 {[%emt 0:01:58]} 23. cxb3 {[%emt 0:00:01]} Ncd7 {[%emt 0:05:50]} 24. Rd3 {[%emt 0:00:12]} Nc5 {[%emt 0:00:45]} 25. Re3 {[%emt 0:00:18]} h5 {[%emt 0:02:00]} 26. Rc1 {[%emt 0:01:45]} Ncd7 {[%emt 0:01:28]} 27. Rec3 {[%emt 0:01:10]} Rxc3 {[%emt 0:00:52]} 28. Nxc3 {[%emt 0:01:26]} Rc8 {[%emt 0:01:46]} 29. Ne2 {[%emt 0:00:37]} Rxc1+ {[%emt 0:01:00]} 30. Nxc1 {[%emt 0:00:02]} Nc5 {[%emt 0:00:21]} 31. Bxc5 {[%emt 0:04:14]} dxc5 {[%emt 0:00:23]} 32. Nd3 {[%emt 0:00:02]} h4 {[%emt 0:05:32]} 33. g4 {[%emt 0:02:21]} Nd7 {[%emt 0:01:15]} 34. e5 {[%emt 0:00:01]} Kf8 {[%emt 0:03:26]} 35. Kf1 {[%emt 0:00:06]} g5 {[%emt 0:08:16]} 36. e6 {[%emt 0:00:42]} Nf6 {[%emt 0:00:28]} 37. Nxc5 {[%emt 0:00:07]} Bxd5 {[%emt 0:00:12]} 38. fxg5 {[%emt 0:00:36]} Bxg2+ {[%emt 0:00:32]} 39. Kxg2 {[%emt 0:00:02]} Nd5 {[%emt 0:00:32]} 40. Nde4 {[%emt 0:01:49]} Nf4+ {[%emt 0:02:21]} 41. Kf3 {[%emt 0:00:17]} Nxe6 {[%emt 0:00:11]} 42. Nxe6+ {[%emt 0:02:49]} fxe6 {[%emt 0:00:05]} 1-0

[Event "S. A. Group BAN-chT 2018"]
[Site "Dhaka"]
[Date "2018.12.07"]
[Round "1"]
[White "Bhuiyan, Golam Mostafa"]
[Black "Hasan Md, Emam"]
[Result "1-0"]
[ECO "C41"]
[WhiteElo "2079"]
[BlackElo "2076"]
[Annotator "NA"]
[PlyCount "92"]
[EventDate "2018.12.07"]
[EventType "team-tourn"]
[EventCountry "BAN"]
[SourceTitle "playchess.com"]
[Source "ChessBase"]
[SourceQuality "1"]
[TimeControl "5400+30"]

1. e4 {[%emt 0:00:00]} e5 {[%emt 0:00:04]} 2. Nf3 {[%emt 0:00:00]} d6 {[%emt 0:00:02]} 3. d4 {[%emt 0:00:00]} Nd7 {[%emt 0:00:03]} 4. Nc3 {[%emt 0:00:10]} c6 {[%emt 0:00:08]} 5. Bc4 {[%emt 0:00:16]} Be7 {[%emt 0:00:10]} 6. Be3 {[%emt 0:08:07]} h6 {[%emt 0:01:03]} 7. Qd2 {[%emt 0:00:16]} Ngf6 {[%emt 0:01:17]} 8. h3 {[%emt 0:02:16]} Qc7 {[%emt 0:02:00]} 9. Bb3 {[%emt 0:14:27]} a6 {[%emt 0:05:29]} 10. a4 {[%emt 0:01:36]} Nf8 {[%emt 0:02:56]} 11. a5 {[%emt 0:00:17]} Be6 {[%emt 0:01:13]} 12. d5 {[%emt 0:01:51]} cxd5 {[%emt 0:03:05]} 13. exd5 {[%emt 0:00:35]} Bf5 {[%emt 0:00:54]} 14. Nh4 {[%emt 0:00:40]} Ne4 {[%emt 0:07:58]} 15. Nxf5 {[%emt 0:10:56]} Nxd2 {[%emt 0:04:36]} 16. Nxg7+ {[%emt 0:00:02]} Kd7 {[%emt 0:03:09]} 17. Ba4+ {[%emt 0:01:50]} Kc8 {[%emt 0:00:25]} 18. Bb6 {[%emt 0:08:55]} Qc4 {[%emt 0:00:37]} 19. Nf5 {[%emt 0:07:13]} Ng6 {[%emt 0:02:52]} 20. Be3 {[%emt 0:02:44]} Kb8 {[%emt 0:05:21]} 21. Kxd2 {[%emt 0:03:39]} Bg5 {[%emt 0:01:44]} 22. Bb3 {[%emt 0:00:06]} Bxe3+ {[%emt 0:01:08]} 23. fxe3 {[%emt 0:00:51]} Qc8 {[%emt 0:02:10]} 24. Nxd6 {[%emt 0:00:32]} Qd7 {[%emt 0:06:41]} 25. Nc4 {[%emt 0:01:21]} Qf5 {[%emt 0:01:32]} 26. Raf1 {[%emt 0:04:24]} Qg5 {[%emt 0:00:24]} 27. Nb6 {[%emt 0:00:19]} f5 {[%emt 0:02:46]} 28. Rf2 {[%emt 0:01:45]} Kc7 {[%emt 0:01:15]} 29. Nxa8+ {[%emt 0:02:22]} Rxa8 {[%emt 0:00:01]} 30. Re1 {[%emt 0:02:08]} Re8 {[%emt 0:02:15]} 31. Kc1 {[%emt 0:00:02]} e4 {[%emt 0:01:44]} 32. Kb1 {[%emt 0:00:54]} h5 {[%emt 0:04:30]} 33. Rd2 {[%emt 0:04:08]} Kd6 {[%emt 0:00:42]} 34. Rf2 {[%emt 0:02:00]} Re5 {[%emt 0:01:53]} 35. Ref1 {[%emt 0:03:22]} Nh4 {[%emt 0:02:14]} 36. Re2 {[%emt 0:01:12]} Qd8 {[%emt 0:01:21]} 37. Ref2 {[%emt 0:02:38]} Qg5 {[%emt 0:06:30]} 38. Re1 {[%emt 0:02:14]} Ng6 {[%emt 0:08:50]} 39. Ref1 {[%emt 0:02:43]} Ne7 {[%emt 0:00:10]} 40. g4 {[%emt 0:01:02]} hxg4 {[%emt 0:00:26]} 41. hxg4 {[%emt 0:00:08]} Qxg4 {[%emt 0:00:10]} 42. Rh2 {[%emt 0:00:30]} Qg5 {[%emt 0:01:10]} 43. Rfh1 {[%emt 0:00:00]} Ng6 {[%emt 0:05:14]} 44. Rh6 {[%emt 0:00:25]} Re7 {[%emt 0:00:17]} 45. Ne2 {[%emt 0:00:32]} Ke5 {[%emt 0:02:29]} 46. R1h3 {[%emt 0:02:02]} Rd7 {[%emt 0:05:45]} 1-0

[Event "S. A. Group BAN-chT 2018"]
[Site "Dhaka"]
[Date "2018.12.07"]
[Round "1"]
[White "Hossain, Alamgir"]
[Black "Mohammed, Mainuddin"]
[Result "0-1"]
[ECO "C47"]
[WhiteElo "2052"]
[BlackElo "1950"]
[Annotator "NA"]
[PlyCount "74"]
[EventDate "2018.12.07"]
[EventType "team-tourn"]
[EventCountry "BAN"]
[SourceTitle "playchess.com"]
[Source "ChessBase"]
[SourceQuality "1"]
[TimeControl "5400+30"]

1. e4 e5 2. Nf3 Nf6 3. Nc3 Nc6 4. d4 exd4 5. Nxd4 Bb4 6. Nxc6 Bxc3+ 7. bxc3 bxc6 8. Bd3 d6 9. O-O O-O 10. Bg5 Qe7 11. f4 d5 {[%emt 1:35:30]} 12. Bxf6 {[%emt 1:36:00]} Qxf6 {[%emt 0:00:30]} 13. exd5 {[%emt 0:00:30]} Qxc3 {[%emt 0:00:30]} 14. dxc6 {[%emt 0:00:30]} Qxc6 {[%emt 0:00:30]} 15. Kh1 {[%emt 0:00:30]} Bb7 {[%emt 0:00:30]} 16. Qg4 {[%emt 0:00:30]} f5 {[%emt 0:00:30]} 17. Qh3 {[%emt 0:00:30]} Rf6 {[%emt 0:00:30]} 18. Rf2 {[%emt 0:00:30]} Raf8 {[%emt 0:00:30]} 19. Rb1 {[%emt 0:00:30]} Qc5 {[%emt 0:00:30]} 20. Re2 {[%emt 0:00:30]} Bc6 {[%emt 0:00:30]} 21. Re5 {[%emt 0:00:30]} Qd4 {[%emt 0:00:30]} 22. Qe3 {[%emt 0:00:30]} Qa4 {[%emt 0:00:30]} 23. a3 {[%emt 0:00:30]} Rg6 {[%emt 0:00:30]} 24. Rg1 {[%emt 0:00:30]} Rg4 {[%emt 0:00:30]} 25. Rxf5 {[%emt 0:00:30]} Rxf4 {[%emt 0:00:30]} 26. Qe6+ {[%emt 0:00:30]} Kh8 {[%emt 0:00:30]} 27. Rxf4 {[%emt 0:00:30]} Rxf4 {[%emt 0:00:30]} 28. Qc8+ {[%emt 0:00:30]} Be8 {[%emt 0:00:30]} 29. Re1 {[%emt 0:00:30]} Rf8 {[%emt 0:00:30]} 30. Qh3 {[%emt 0:00:30]} h6 {[%emt 0:00:30]} 31. Qe6 {[%emt 0:00:30]} Bb5 {[%emt 0:00:30]} 32. Bg6 {[%emt 0:00:30]} Bc6 {[%emt 0:00:30]} 33. h3 {[%emt 0:00:30]} Qh4 {[%emt 0:00:30]} 34. Kh2 {[%emt 0:00:30]} Qf4+ {[%emt 0:00:30]} 35. Kh1 {[%emt 0:00:30]} Qg3 {[%emt 0:00:30]} 36. Rg1 {[%emt 0:00:30]} Bxg2+ {[%emt 0:00:30]} 37. Rxg2 {[%emt 0:00:30]} Rf1+ {[%emt 0:00:30]} 0-1

[Event "S. A. Group BAN-chT 2018"]
[Site "Dhaka"]
[Date "2018.12.07"]
[Round "1"]
[White "abu, Hanif"]
[Black "Islam, Kh. Aminul"]
[Result "1/2-1/2"]
[ECO "A05"]
[WhiteElo "2002"]
[BlackElo "2253"]
[Annotator "NA"]
[PlyCount "102"]
[EventDate "2018.12.07"]
[EventType "team-tourn"]
[EventCountry "BAN"]
[SourceTitle "playchess.com"]
[Source "ChessBase"]
[SourceQuality "1"]
[TimeControl "5400+30"]

1. Nf3 {[%emt 0:00:00]} Nf6 {[%emt 0:00:00]} 2. g3 {[%emt 0:00:00]} b6 {[%emt 0:01:35]} 3. Bg2 {[%emt 0:00:08]} Bb7 {[%emt 0:00:12]} 4. d3 {[%emt 0:00:33]} c5 {[%emt 0:01:50]} 5. Nc3 {[%emt 0:02:47]} d5 {[%emt 0:01:16]} 6. e4 {[%emt 0:05:31]} e6 {[%emt 0:15:18]} 7. Bf4 {[%emt 0:09:18]} Be7 {[%emt 0:03:57]} 8. a3 {[%emt 0:00:20]} Nc6 {[%emt 0:02:34]} 9. e5 {[%emt 0:03:21]} Nd7 {[%emt 0:00:49]} 10. h4 {[%emt 0:00:27]} a6 {[%emt 0:09:18]} 11. Nb1 {[%emt 0:12:31]} h6 {[%emt 0:00:47]} 12. Nbd2 {[%emt 0:00:45]} Nf8 {[%emt 0:00:44]} 13. c3 {[%emt 0:02:38]} Ng6 {[%emt 0:06:03]} 14. Qe2 {[%emt 0:06:12]} Qd7 {[%emt 0:01:35]} 15. d4 {[%emt 0:52:59]} Nxf4 {[%emt 0:04:35]} 16. gxf4 {[%emt 0:00:00]} h5 {[%emt 0:03:34]} 17. Qd3 {[%emt 0:00:00]} g6 {[%emt 0:00:47]} 18. Ng5 {[%emt 0:01:30]} cxd4 {[%emt 0:03:45]} 19. cxd4 {[%emt 0:00:00]} Bxg5 {[%emt 0:00:23]} 20. fxg5 {[%emt 0:00:00]} Ne7 {[%emt 0:00:27]} 21. O-O {[%emt 0:00:00]} Bc6 {[%emt 0:04:42]} 22. Rfc1 {[%emt 0:00:00]} Bb5 {[%emt 0:03:52]} 23. Qf3 {[%emt 0:00:00]} O-O {[%emt 0:06:31]} 24. Bh3 {[%emt 0:00:00]} Rfc8 {[%emt 0:01:41]} 25. Qe3 {[%emt 0:00:00]} Rxc1+ {[%emt 0:05:55]} 26. Rxc1 {[%emt 0:00:00]} Rc8 {[%emt 0:00:57]} 27. Rc3 {[%emt 0:00:00]} Rc6 {[%emt 0:01:50]} 28. f4 {[%emt 0:00:00]} Qc8 {[%emt 0:00:55]} 29. Kf2 {[%emt 0:00:00]} Kf8 {[%emt 0:00:59]} 30. Rxc6 {[%emt 0:00:00]} Qxc6 {[%emt 0:05:16]} 31. Qc3 {[%emt 0:00:00]} Qb7 {[%emt 0:01:39]} 32. Ke3 {[%emt 0:00:00]} Ke8 {[%emt 0:00:40]} 33. Qb4 {[%emt 0:00:00]} Qc6 {[%emt 0:00:54]} 34. Qc3 {[%emt 0:00:00]} Qxc3+ {[%emt 0:00:56]} 35. bxc3 {[%emt 0:00:00]} Ba4 {[%emt 0:00:06]} 36. Nf1 {[%emt 0:00:00]} Bb5 {[%emt 0:00:43]} 37. Ng3 {[%emt 0:00:00]} Kd7 {[%emt 0:00:46]} 38. Bg2 {[%emt 0:00:00]} Ba4 {[%emt 0:03:13]} 39. Bf1 {[%emt 0:00:00]} b5 {[%emt 0:00:33]} 40. Be2 {[%emt 0:00:00]} Bb3 {[%emt 0:02:46]} 41. Kd2 {[%emt 0:00:00]} Bc4 {[%emt 0:02:21]} 42. Bd1 {[%emt 0:00:00]} Ke8 {[%emt 0:01:24]} 43. Kc2 {[%emt 0:00:00]} Kf8 {[%emt 0:00:22]} 44. Kb2 {[%emt 0:00:00]} Nc6 {[%emt 0:00:23]} 45. Kc2 {[%emt 0:00:00]} Na5 {[%emt 0:00:54]} 46. Kd2 {[%emt 0:00:00]} Ba2 {[%emt 0:00:25]} 47. Be2 {[%emt 0:00:00]} Ke7 {[%emt 0:00:29]} 48. Kc2 {[%emt 0:00:00]} Bc4 {[%emt 0:00:30]} 49. Bf3 {[%emt 0:00:00]} Bb3+ {[%emt 0:00:21]} 50. Kb2 {[%emt 0:00:00]} Bc4 {[%emt 0:01:49]} 51. Bd1 {[%emt 0:00:00]} Bd3 {[%emt 0:00:23]} 1/2-1/2

[Event "S. A. Group BAN-chT 2018"]
[Site "Dhaka"]
[Date "2018.12.07"]
[Round "1"]
[White "Khan, Jewel"]
[Black "Islam, Mohammad Aminul"]
[Result "1/2-1/2"]
[ECO "A55"]
[WhiteElo "1957"]
[BlackElo "1959"]
[Annotator "NA"]
[PlyCount "137"]
[EventDate "2018.12.07"]
[EventType "team-tourn"]
[EventCountry "BAN"]
[SourceTitle "playchess.com"]
[Source "ChessBase"]
[SourceQuality "1"]
[TimeControl "5400+30"]

1. d4 {[%emt 1:30:30]} Nf6 {[%emt 1:30:30]} 2. c4 {[%emt 0:00:30]} d6 {[%emt 0:00:30]} 3. Nf3 {[%emt 0:00:30]} Nbd7 {[%emt 0:00:30]} 4. Nc3 {[%emt 0:00:30]} e5 {[%emt 0:00:30]} 5. e4 {[%emt 0:00:30]} Be7 {[%emt 0:00:30]} 6. Bd3 {[%emt 0:00:30]} O-O {[%emt 0:00:30]} 7. O-O {[%emt 0:00:30]} c5 {[%emt 0:00:30]} 8. dxe5 {[%emt 0:00:30]} Nxe5 {[%emt 0:00:30]} 9. Nxe5 {[%emt 0:00:30]} dxe5 {[%emt 0:00:30]} 10. Nd5 {[%emt 0:00:30]} Nxd5 {[%emt 0:00:30]} 11. cxd5 {[%emt 0:00:30]} f5 {[%emt 0:00:30]} 12. f4 {[%emt 0:00:30]} fxe4 {[%emt 0:00:30]} 13. Bxe4 {[%emt 0:00:30]} Bf6 {[%emt 0:00:30]} 14. fxe5 {[%emt 0:00:30]} Bxe5 {[%emt 0:00:30]} 15. Bxh7+ {[%emt 0:00:30]} Kxh7 {[%emt 0:00:30]} 16. Qh5+ {[%emt 0:00:30]} Kg8 {[%emt 0:00:30]} 17. Rxf8+ {[%emt 0:00:30]} Qxf8 {[%emt 0:00:30]} 18. Qxe5 {[%emt 0:00:30]} Bf5 {[%emt 0:00:30]} 19. d6 {[%emt 0:00:30]} Re8 {[%emt 0:00:30]} 20. Qd5+ {[%emt 0:00:30]} Be6 {[%emt 0:00:30]} 21. Qxc5 {[%emt 0:00:30]} Rd8 {[%emt 0:00:30]} 22. Bd2 {[%emt 0:00:30]} Qxd6 {[%emt 0:00:30]} 23. Qxd6 {[%emt 0:00:30]} Rxd6 {[%emt 0:00:30]} 24. Bc3 {[%emt 0:00:30]} a6 {[%emt 0:00:30]} 25. Re1 {[%emt 0:00:30]} Kf7 {[%emt 0:00:30]} 26. a3 {[%emt 0:00:30]} b5 {[%emt 0:00:30]} 27. Re3 {[%emt 0:00:30]} Bd5 {[%emt 0:00:30]} 28. Re5 {[%emt 0:00:30]} g6 {[%emt 0:00:30]} 29. h4 {[%emt 0:00:30]} Be6 {[%emt 0:00:30]} 30. h5 {[%emt 0:00:30]} gxh5 {[%emt 0:00:30]} 31. Rxh5 {[%emt 0:00:30]} Kg6 {[%emt 0:00:30]} 32. Re5 {[%emt 0:00:30]} Kf7 {[%emt 0:00:30]} 33. Rg5 {[%emt 0:00:30]} Bd7 {[%emt 0:00:30]} 34. Rg7+ {[%emt 0:00:30]} Kf8 {[%emt 0:00:30]} 35. Kf2 {[%emt 0:00:30]} Rd3 {[%emt 0:00:30]} 36. Rg6 {[%emt 0:00:30]} Bc8 {[%emt 0:00:30]} 37. Rc6 {[%emt 0:00:30]} Rd8 {[%emt 0:00:30]} 38. Rc7 {[%emt 0:00:30]} Re8 {[%emt 0:00:30]} 39. Kf3 {[%emt 0:00:30]} Be6 {[%emt 0:00:30]} 40. g4 {[%emt 0:00:30]} Bd5+ {[%emt 0:00:30]} 41. Kf4 {[%emt 0:00:30]} Bf7 {[%emt 0:00:30]} 42. Bf6 {[%emt 0:00:30]} a5 {[%emt 0:00:30]} 43. g5 {[%emt 0:00:30]} Bg6 {[%emt 0:00:30]} 44. Bg7+ {[%emt 0:00:30]} Kg8 {[%emt 0:00:30]} 45. Bc3 {[%emt 0:00:30]} b4 {[%emt 0:00:30]} 46. axb4 {[%emt 0:00:30]} axb4 {[%emt 0:00:30]} 47. Be5 {[%emt 0:00:30]} Rb8 {[%emt 0:00:30]} 48. Ke3 {[%emt 0:00:30]} Rb6 49. Kd4 {[%emt 0:00:30]} b3 50. Kc5 {[%emt 0:00:30]} Bc2 {[%emt 0:01:30] Kb5 Ra6 Kb4 [%clk 0:00:00] Re6 [%clk 0:00:00]} 51. Rd7 Ra6 {[%emt 0:00:30]} 52. Bf6 Re6 {[%emt 0:00:30]} 53. Kb5 Kf8 {[%emt 0:00:30]} 54. Bc3 Ke8 {[%emt 0:00:30]} 55. Kc5 Kf8 {[%emt 0:00:30]} 56. Rc7 Ra6 {[%emt 0:00:30]} 57. Kd5 Rg6 {[%emt 0:00:30]} 58. Ke5 Re6+ {[%emt 0:00:30]} 59. Kf4 Kg8 {[%emt 0:00:30]} 60. Kg4 Bg6 {[%emt 0:00:30] Kh5 Bf7+ [%clk 0:00:00] Kh6 Re3 [%clk 0:00:00]} 61. Bf6 Re8 {[%emt 0:00:30]} 62. Rc3 {[%emt 0:06:00]} Re2 {[%emt 0:00:30]} 63. Rc8+ {[%emt 0:00:30]} Re8 {[%emt 0:00:30]} 64. Rc1 {[%emt 0:00:30]} Re2 {[%emt 0:00:30]} 65. Rc8+ {[%emt 0:00:30]} Be8 66. g6 {[%emt 0:00:30]} Rh2 {[%emt 0:01:00]} 67. Kg5 {[%emt 0:00:30]} Rg2+ 68. Kf5 Kf8 {[%emt 0:01:00]} 69. Ke4 {[%emt 0:01:00]} 1/2-1/2

[Event "S. A. Group BAN-chT 2018"]
[Site "Dhaka"]
[Date "2018.12.07"]
[Round "1"]
[White "Alam, Badrul"]
[Black "Khan, Mokaddesur Rahman"]
[Result "0-1"]
[ECO "B92"]
[WhiteElo "1858"]
[BlackElo "1942"]
[Annotator "NA"]
[PlyCount "56"]
[EventDate "2018.12.07"]
[EventType "team-tourn"]
[EventCountry "BAN"]
[SourceTitle "playchess.com"]
[Source "ChessBase"]
[SourceQuality "1"]
[TimeControl "5400+30"]

1. e4 {[%emt 0:01:21]} c5 {[%emt 0:00:00]} 2. Nf3 {[%emt 0:00:13]} d6 {[%emt 0:00:00]} 3. d4 {[%emt 0:00:18]} cxd4 {[%emt 0:00:00]} 4. Nxd4 {[%emt 0:00:08]} Nf6 {[%emt 0:00:02]} 5. Nc3 {[%emt 0:00:16]} a6 {[%emt 0:00:05]} 6. Be2 {[%emt 0:01:33]} e5 {[%emt 0:00:07]} 7. Nb3 {[%emt 0:02:45]} Be6 {[%emt 0:00:24]} 8. Bg5 {[%emt 0:01:31]} Be7 {[%emt 0:00:59]} 9. Bxf6 {[%emt 0:01:48]} Bxf6 {[%emt 0:00:24]} 10. Nd5 {[%emt 0:00:07]} Bg5 {[%emt 0:03:50]} 11. h4 {[%emt 0:06:49]} Bh6 {[%emt 0:04:18]} 12. g4 {[%emt 0:01:00]} g6 {[%emt 0:01:01]} 13. Qd3 {[%emt 0:05:01]} Nc6 {[%emt 0:10:40]} 14. g5 {[%emt 0:06:34]} Bg7 {[%emt 0:01:10]} 15. c3 {[%emt 0:03:31]} Rc8 {[%emt 0:06:04]} 16. O-O-O {[%emt 0:08:27]} Nd4 {[%emt 0:03:51]} 17. Kb1 {[%emt 0:03:09]} Bxd5 {[%emt 0:01:07]} 18. exd5 {[%emt 0:10:00]} Nxb3 {[%emt 0:03:29]} 19. axb3 {[%emt 0:00:04]} Qb6 {[%emt 0:01:07]} 20. Qc2 {[%emt 0:02:20]} O-O {[%emt 0:04:24]} 21. Bg4 {[%emt 0:01:24]} Rc5 {[%emt 0:03:08]} 22. h5 {[%emt 0:00:53]} Rb5 {[%emt 0:04:21]} 23. hxg6 {[%emt 0:07:23]} hxg6 {[%emt 0:00:40]} 24. b4 {[%emt 0:02:22]} a5 {[%emt 0:01:00]} 25. f3 {[%emt 0:04:57]} axb4 {[%emt 0:01:41]} 26. c4 {[%emt 0:03:48]} Ra5 {[%emt 0:03:51]} 27. Qh2 {[%emt 0:00:06]} Rfa8 {[%emt 0:00:08]} 28. Kc1 {[%emt 0:20:19]} Qe3+ {[%emt 0:46:09]} 0-1